bitfinex/quotes_BTCUSD_20230106
["timestamp","ask_amount","ask_price","bid_price","bid_amount"]
[1672969856088,2.35215977,16860.0,16859.0,0.11661337]
[1672969856354,2.88584023,16860.0,16859.0,0.11661337]
[1672969857144,2.88584543,16860.0,16859.0,0.11661337]
[1672969857408,2.35215977,16860.0,16859.0,0.11661337]
[1672969858763,2.88584544,16860.0,16859.0,0.11661337]
[1672969859575,2.35215977,16860.0,16859.0,0.11661337]
[1672969859832,2.88584655,16860.0,16859.0,0.11661337]
[1672969860086,2.35215977,16860.0,16859.0,0.11661337]
[1672969865489,3.57039927,16860.0,16859.0,0.11661337]
[1672969865755,3.56327509,16860.0,16859.0,0.11661337]
[1672969867258,3.56320187,16860.0,16859.0,0.11661337]
[1672969869886,2.96361655,16860.0,16859.0,0.11661337]
[1672969872678,4.18185605,16860.0,16859.0,0.11661337]
[1672969872918,3.56320187,16860.0,16859.0,0.11661337]
[1672969873179,3.86320187,16860.0,16859.0,0.11661337]
[1672969874620,3.85620187,16860.0,16859.0,0.01461337]
[1672969874849,3.86420187,16860.0,16859.0,0.10761337]
[1672969875892,3.85620187,16860.0,16859.0,0.01461337]
[1672969876655,3.86420187,16860.0,16859.0,0.10761337]
[1672969877463,3.85620187,16860.0,16859.0,0.01461337]
[1672969877708,3.56420187,16860.0,16859.0,0.10761337]
[1672969877972,3.55620187,16860.0,16859.0,0.01461337]
[1672969878449,3.56420187,16860.0,16859.0,0.10761337]
[1672969878960,3.55620187,16860.0,16859.0,0.01461337]
[1672969879215,3.56220187,16860.0,16859.0,0.08661337]
[1672969887421,3.56220187,16860.0,16859.0,0.08649811]
[1672969895826,3.86220187,16860.0,16859.0,0.08649811]
[1672969896095,3.56220187,16860.0,16859.0,0.08649811]
[1672969896578,3.86220187,16860.0,16859.0,0.08649811]
[1672969901060,3.26261655,16860.0,16859.0,0.08649811]
[1672969901337,3.86280269,16860.0,16859.0,0.08649811]
[1672969903151,3.56280269,16860.0,16859.0,0.08649811]
[1672969903451,3.86280269,16860.0,16859.0,0.08649811]
[1672969906004,3.56280269,16860.0,16859.0,0.08649811]
[1672969907038,2.95127269,16860.0,16859.0,0.08649811]
[1672969908108,2.95127269,16860.0,16859.0,0.08641719]
[1672969908868,3.25127269,16860.0,16859.0,0.08641719]
[1672969909130,3.56280269,16860.0,16859.0,0.08641719]
[1672969909933,3.86280269,16860.0,16859.0,0.08641719]
[1672969910131,3.56280269,16860.0,16859.0,0.08641719]
[1672969911622,2.95127269,16860.0,16859.0,0.08641719]
[1672969911897,3.25127269,16860.0,16859.0,0.08641719]
[1672969913451,2.76903516,16860.0,16859.0,0.08641719]
[1672969913743,3.3037189,16860.0,16859.0,0.08641719]
[1672969917377,3.91564023,16860.0,16859.0,0.08641719]
[1672969919453,4.21563127,16860.0,16859.0,0.08641719]
[1672969919716,3.3037189,16860.0,16859.0,0.08641719]
[1672969919976,3.81560186,16860.0,16859.0,0.08641719]
[1672969921274,3.63364579,16860.0,16859.0,0.08641719]
[1672969921581,2.81295306,16860.0,16859.0,0.08641719]
[1672969922092,2.80695306,16860.0,16859.0,0.01441719]
[1672969922350,2.90195306,16860.0,16859.0,0.02241719]
[1672969923429,2.80695306,16860.0,16859.0,0.01441719]
[1672969923690,2.90195306,16860.0,16859.0,0.02241719]
[1672969923959,2.86631372,16860.0,16859.0,0.02241719]
[1672969924226,2.90195306,16860.0,16859.0,0.02241719]
[1672969926423,2.91045306,16860.0,16859.0,0.02241719]
[1672969926678,1.64301428,16860.0,16859.0,0.02241719]
[1672969926905,4.04102546,16860.0,16859.0,0.02241719]
[1672969927404,3.94602546,16860.0,16859.0,0.01441719]
[1672969927634,4.04102546,16860.0,16859.0,0.02241719]
[1672969928943,4.04102546,16860.0,16859.0,0.02235598]
[1672969937162,3.94867427,16860.0,16859.0,0.02235598]
[1672969943708,3.33002009,16860.0,16859.0,0.02235598]
[1672969952401,4.2062865,16860.0,16859.0,0.02235598]
[1672969955744,4.17064716,16860.0,16859.0,0.02235598]
[1672969956582,4.2062865,16860.0,16859.0,0.02235598]
[1672969957028,4.68622535,16860.0,16859.0,0.02235598]
[1672969957797,4.68622535,16860.0,16859.0,0.02227973]
[1672969960360,4.2062865,16860.0,16859.0,0.02227973]
[1672969963092,4.20520465,16860.0,16859.0,0.02227973]
[1672969963618,3.33002009,16860.0,16859.0,0.02227973]
[1672969964584,4.20520328,16860.0,16859.0,0.02227973]
[1672969964836,4.20512312,16860.0,16859.0,0.02227973]
[1672969966632,4.56151151,16860.0,16859.0,0.02227973]
[1672969967153,3.68632832,16860.0,16859.0,0.02227973]
[1672969967410,4.56140751,16860.0,16859.0,0.02227973]
[1672969967655,4.20501912,16860.0,16859.0,0.02227973]
[1672969973751,3.90510553,16860.0,16859.0,0.02227973]
[1672969975827,3.03002634,16860.0,16859.0,0.02227973]
[1672969976045,3.90518448,16860.0,16859.0,0.02227973]
[1672969976341,4.35501313,16860.0,16859.0,0.02227973]
[1672969977671,4.65501313,16860.0,16859.0,0.02227973]
[1672969977926,3.77985499,16860.0,16859.0,0.02227973]
[1672969980514,4.65518851,16860.0,16859.0,0.02227973]
[1672969981038,3.77985499,16860.0,16859.0,0.02227973]
[1672969983115,4.6552153,16860.0,16859.0,0.02227973]
[1672969983374,4.20516455,16860.0,16859.0,0.02227973]
[1672969985175,3.32980424,16860.0,16859.0,0.02227973]
[1672969995301,4.20499261,16860.0,16859.0,0.02227973]
[1672969995492,3.32980424,16860.0,16859.0,0.02227973]
[1672969998576,3.94845842,16860.0,16859.0,0.02227973]
[1672969998878,4.40261446,16860.0,16859.0,0.02227973]
[1672970000663,4.01905652,16860.0,16859.0,0.02227973]
[1672970001198,4.40261446,16860.0,16859.0,0.02227973]
[1672970001744,4.40261446,16860.0,16859.0,0.02287273]
[1672970005636,4.40261446,16860.0,16859.0,0.02277868]
[1672970005826,4.30761446,16860.0,16859.0,0.01477868]
[1672970006349,4.40261446,16860.0,16859.0,0.02277868]
[1672970017848,4.71510524,16860.0,16859.0,6.8e-07]
[1672970018079,4.71510524,16860.0,16858.0,0.00063594]
[1672970018333,2.4101947,16859.0,16858.0,0.00063594]
[1672970018673,4.1896567,16859.0,16858.0,0.00063594]
[1672970018891,4.22529604,16859.0,16858.0,0.00063594]
[1672970019413,4.22529604,16859.0,16858.0,0.00763594]
[1672970019688,4.22529604,16859.0,16858.0,0.00063594]
[1672970019943,4.32829604,16859.0,16858.0,0.00863594]
[1672970024688,4.35787053,16859.0,16858.0,0.00863594]
[1672970025467,4.35787053,16859.0,16858.0,0.00063594]
[1672970025737,4.35787053,16859.0,16858.0,0.00763594]
[1672970026000,4.25487053,16859.0,16858.0,0.00063594]
[1672970027134,4.39087053,16859.0,16858.0,0.00163594]
[1672970030479,4.39087053,16859.0,16858.0,0.00063594]
[1672970030480,4.25487053,16859.0,16858.0,0.00063594]
[1672970030731,4.39087053,16859.0,16858.0,0.00063594]
[1672970036981,0.4,16858.0,16857.0,0.01807095]
[1672970037238,5.03847483,16858.0,16857.0,0.01807095]
[1672970037497,4.19942329,16858.0,16857.0,0.01807095]
[1672970038807,0.4,16857.0,16856.0,0.00258894]
[1672970039078,4.55985015,16857.0,16856.0,0.00258894]
[1672970039394,5.18936662,16857.0,16856.0,0.00258894]
[1672970040158,4.31486507,16857.0,16856.0,0.00258894]
[1672970040420,4.45086507,16857.0,16856.0,0.00258894]
[1672970040956,5.32540855,16857.0,16856.0,0.00258894]
[1672970041471,4.45086507,16857.0,16856.0,0.00258894]
[1672970042511,5.32515224,16857.0,16856.0,0.00258894]
[1672970042771,5.18915224,16857.0,16856.0,0.00258894]
[1672970043032,4.45086507,16857.0,16856.0,0.00258894]
[1672970044076,5.32517112,16857.0,16856.0,0.00258894]
[1672970047282,4.76581116,16857.0,16856.0,0.00258894]
[1672970047512,5.63975183,16857.0,16856.0,0.00258894]
[1672970048309,5.63975183,16857.0,16855.0,0.02428174]
[1672970048636,2.06983196,16856.0,16855.0,0.02428174]
[1672970048842,3.53685359,16856.0,16855.0,0.02428174]
[1672970049108,4.75901293,16856.0,16855.0,0.02428174]
[1672970050630,4.89401293,16856.0,16855.0,0.02428174]
[1672970052774,4.85837359,16856.0,16855.0,0.02428174]
[1672970053295,3.98461196,16856.0,16855.0,0.02428174]
[1672970053550,4.0202513,16856.0,16855.0,0.02428174]
[1672970055475,4.89401293,16856.0,16855.0,0.02428174]
[1672970058877,5.21253795,16856.0,16855.0,0.02428174]
[1672970059385,4.89401293,16856.0,16855.0,0.02428174]
[1672970059638,5.21253795,16856.0,16855.0,0.02428174]
[1672970061882,4.89401293,16856.0,16855.0,0.02428174]
[1672970063433,5.21253795,16856.0,16855.0,7.4e-07]
[1672970063690,5.21253795,16856.0,16854.0,0.00127986]
[1672970063954,2.11891721,16855.0,16854.0,0.00127986]
[1672970064241,4.20718466,16855.0,16854.0,0.00127986]
[1672970064472,4.242824,16855.0,16854.0,0.00127986]
[1672970065242,4.376824,16855.0,16854.0,0.00127986]
[1672970070870,5.25058563,16855.0,16854.0,0.00127986]
[1672970071124,0.4,16854.0,16853.0,0.00143013]
[1672970071426,4.251522,16854.0,16853.0,0.00143013]
[1672970071685,4.28716134,16854.0,16853.0,0.00143013]
[1672970072487,4.39316134,16854.0,16853.0,0.00143013]
[1672970072750,5.16092297,16854.0,16853.0,0.00143013]
[1672970073004,4.42316134,16854.0,16853.0,0.00143013]
[1672970073261,5.29692297,16854.0,16853.0,0.00143013]
[1672970073728,5.90659219,16854.0,16853.0,1.3e-07]
[1672970074513,5.93883293,16854.0,16853.0,1.3e-07]
[1672970075051,5.0650713,16854.0,16853.0,1.3e-07]
[1672970075582,5.93883293,16854.0,16853.0,1.3e-07]
[1672970080060,5.32916371,16854.0,16853.0,1.3e-07]
[1672970080322,5.19316371,16854.0,16853.0,1.3e-07]
[1672970080586,5.84409823,16854.0,16853.0,1.3e-07]
[1672970081099,6.02312506,16854.0,16853.0,1.3e-07]
[1672970082895,5.88712506,16854.0,16853.0,1.3e-07]
[1672970083150,6.02312506,16854.0,16853.0,1.3e-07]
[1672970084116,5.32916371,16854.0,16853.0,1.3e-07]
[1672970084337,6.04421114,16854.0,16853.0,1.3e-07]
[1672970085687,6.07385278,16854.0,16853.0,1.3e-07]
[1672970087440,5.17044951,16854.0,16853.0,1.3e-07]
[1672970088558,5.03444951,16854.0,16853.0,1.3e-07]
[1672970088784,5.17044951,16854.0,16853.0,1.3e-07]
[1672970090182,5.03444951,16854.0,16853.0,1.3e-07]
[1672970090395,5.17044951,16854.0,16853.0,1.3e-07]
[1672970091075,5.23239958,16854.0,16853.0,1.3e-07]
[1672970091297,0.14461987,16852.0,16851.0,0.01766328]
[1672970091511,3.13828387,16852.0,16851.0,0.01766328]
[1672970091728,4.045963,16852.0,16851.0,0.01766328]
[1672970091968,3.43828387,16852.0,16851.0,0.01766328]
[1672970092681,3.57328387,16852.0,16851.0,0.01766328]
[1672970093140,3.97296773,16852.0,16851.0,0.01766328]
[1672970093361,5.45481898,16852.0,16851.0,0.01766328]
[1672970093580,4.88263607,16852.0,16851.0,0.01766328]
[1672970093809,4.00860707,16852.0,16851.0,0.01766328]
[1672970094050,3.87360707,16852.0,16851.0,0.01766328]
[1672970094275,4.00960707,16852.0,16851.0,0.01766328]
[1672970094853,4.61720048,16852.0,16851.0,0.01766328]
[1672970095105,4.48120048,16852.0,16851.0,0.01766328]
[1672970095369,4.61720048,16852.0,16851.0,0.01766328]
[1672970095635,4.61730408,16852.0,16851.0,0.01766328]
[1672970095886,4.00960707,16852.0,16851.0,0.01766328]
[1672970097439,4.61703092,16852.0,16851.0,0.01766328]
[1672970097968,4.00960707,16852.0,16851.0,0.01766328]
[1672970098782,4.61719895,16852.0,16851.0,0.01766328]
[1672970099576,4.00960707,16852.0,16851.0,0.01766328]
[1672970100354,4.61708721,16852.0,16851.0,0.01766328]
[1672970100618,4.00960707,16852.0,16851.0,0.01766328]
[1672970101113,4.61709483,16852.0,16851.0,0.01766328]
[1672970102698,4.64854013,16852.0,16851.0,0.01766328]
[1672970103506,4.00960707,16852.0,16851.0,0.01766328]
[1672970103773,4.61712771,16852.0,16851.0,0.01766328]
[1672970104310,3.73502153,16852.0,16851.0,0.01766328]
[1672970104572,3.69938219,16852.0,16851.0,0.01766328]
[1672970105352,2.94332219,16852.0,16851.0,0.01766328]
[1672970105614,3.67776797,16852.0,16851.0,0.01766328]
[1672970105862,3.54276797,16852.0,16851.0,0.01766328]
[1672970106147,3.67676797,16852.0,16851.0,0.01766328]
[1672970106637,3.97676797,16852.0,16851.0,0.01766328]
[1672970106885,3.98526797,16852.0,16851.0,0.01766328]
[1672970107144,3.97676797,16852.0,16851.0,0.01773193]
[1672970107454,3.97676797,16852.0,16851.0,0.01766328]
[1672970107940,3.37732219,16852.0,16851.0,0.01766328]
[1672970108211,3.37732219,16852.0,16851.0,0.73428148]
[1672970108465,2.48392119,16852.0,16851.0,1.35293566]
[1672970108748,2.48392119,16852.0,16851.0,0.73428148]
[1672970108997,2.48392119,16852.0,16851.0,0.01766328]
[1672970109269,2.78392119,16852.0,16851.0,0.01766328]
[1672970110651,3.72170367,16852.0,16851.0,0.01766328]
[1672970110919,3.73381789,16852.0,16851.0,0.01766328]
[1672970111985,3.39548119,16852.0,16851.0,0.01766328]
[1672970114407,3.38328579,16852.0,16851.0,0.01766328]
[1672970115713,3.38328579,16852.0,16851.0,0.01757165]
[1672970116493,2.78392119,16852.0,16851.0,0.01757165]
[1672970116789,2.48392119,16852.0,16851.0,0.01764029]
[1672970117048,2.48392119,16852.0,16851.0,0.01757165]
[1672970117322,3.01663676,16852.0,16851.0,0.01757165]
[1672970117588,2.48392119,16852.0,16851.0,0.01757165]
[1672970118112,2.78392119,16852.0,16851.0,0.01757165]
[1672970121573,2.48392119,16852.0,16851.0,0.01757165]
[1672970122118,2.78392119,16852.0,16851.0,0.01757165]
[1672970128301,3.38328579,16852.0,16851.0,0.01757165]
[1672970128552,2.78392119,16852.0,16851.0,0.01757165]
[1672970130533,3.38328579,16852.0,16851.0,0.01757165]
[1672970130786,2.78392119,16852.0,16851.0,0.01757165]
[1672970131276,2.78392119,16852.0,16851.0,0.00757165]
[1672970134366,3.38328579,16852.0,16851.0,0.00757165]
[1672970143486,2.78392119,16852.0,16851.0,0.00757165]
[1672970146763,3.38387905,16852.0,16851.0,0.00764029]
[1672970146946,3.38387905,16852.0,16851.0,0.00757165]
[1672970149824,3.08387905,16852.0,16851.0,0.00757165]
[1672970152050,3.38387905,16852.0,16851.0,0.00757165]
[1672970155618,3.38387905,16852.0,16851.0,0.00748474]
[1672970156428,2.78392119,16852.0,16851.0,0.00748474]
[1672970161749,3.38400924,16852.0,16851.0,0.00755338]
[1672970161965,3.38400924,16852.0,16851.0,0.00748474]
[1672970163529,2.78392119,16852.0,16851.0,0.00748474]
[1672970168072,3.38400632,16852.0,16851.0,0.00748474]
[1672970172231,3.38394645,16852.0,16851.0,0.00748474]
[1672970172494,2.78386132,16852.0,16851.0,0.00748474]
[1672970174764,2.55192753,16852.0,16851.0,0.00748474]
[1672970175091,4.27326201,16852.0,16851.0,0.00748474]
[1672970175283,4.27320835,16852.0,16851.0,0.00748474]
[1672970176356,3.70283453,16852.0,16851.0,0.00748474]
[1672970176628,3.73444927,16852.0,16851.0,0.00748474]
[1672970177890,4.65261761,16852.0,16851.0,0.00748474]
[1672970178416,3.64458861,16852.0,16851.0,0.00748474]
[1672970178675,3.78058861,16852.0,16851.0,0.00740544]
[1672970179496,4.65461761,16852.0,16851.0,0.00740544]
[1672970180020,4.51861761,16852.0,16851.0,0.00740544]
[1672970180546,0.4,16851.0,16849.0,0.02240178]
[1672970180813,3.325444,16850.0,16849.0,0.02240178]
[1672970181064,4.51361157,16850.0,16849.0,0.02240178]
[1672970181325,3.94127481,16850.0,16849.0,0.02240178]
[1672970181872,3.98487829,16850.0,16849.0,0.02240178]
[1672970182381,3.92455771,16850.0,16849.0,0.02240178]
[1672970182634,3.92446957,16850.0,16849.0,0.02240178]
[1672970183118,4.62303373,16850.0,16849.0,0.02240178]
[1672970183119,3.32535922,16850.0,16849.0,0.02240178]
[1672970183384,4.03259789,16850.0,16849.0,0.02240178]
[1672970183905,3.46035922,16850.0,16849.0,0.02240178]
[1672970184192,4.02328724,16850.0,16849.0,0.02240178]
[1672970184963,4.05892658,16850.0,16849.0,0.02240178]
[1672970187043,3.49599856,16850.0,16849.0,0.02240178]
[1672970188234,4.09453544,16850.0,16849.0,0.02240178]
[1672970188501,4.69107236,16850.0,16849.0,0.02240178]
[1672970189812,4.65543302,16850.0,16849.0,0.02240178]
[1672970190865,4.58102049,16850.0,16849.0,0.02240178]
[1672970190866,5.16596617,16850.0,16849.0,0.02240178]
[1672970191121,4.60384178,16850.0,16849.0,0.02240178]
[1672970191394,5.06422596,16850.0,16849.0,0.02240178]
[1672970192432,4.47928028,16850.0,16849.0,0.02240178]
[1672970192940,5.18014602,16850.0,16849.0,0.02240178]
[1672970193202,4.47928028,16850.0,16849.0,0.02240178]
[1672970194233,5.17224802,16850.0,16849.0,0.02240178]
[1672970194519,4.47928028,16850.0,16849.0,0.02240178]
[1672970195003,3.8807434,16850.0,16849.0,0.02240178]
[1672970195793,3.8892434,16850.0,16849.0,0.02240178]
[1672970196838,3.7542434,16850.0,16849.0,0.02240178]
[1672970197122,3.8892434,16850.0,16849.0,0.02240178]
[1672970197382,3.7542434,16850.0,16849.0,0.02240178]
[1672970197645,3.8892434,16850.0,16849.0,0.02240178]
[1672970197904,3.7542434,16850.0,16849.0,0.02240178]
[1672970198160,3.8902434,16850.0,16849.0,0.02240178]
[1672970198676,3.7542434,16850.0,16849.0,0.02240178]
[1672970198682,3.8902434,16850.0,16849.0,0.02240178]
[1672970199446,3.7542434,16850.0,16849.0,0.02240178]
[1672970199729,3.8902434,16850.0,16849.0,0.02240178]
[1672970200229,3.7542434,16850.0,16849.0,0.02240178]
[1672970201259,3.8902434,16850.0,16849.0,0.02240178]
[1672970201771,4.02794554,16850.0,16849.0,0.02240178]
[1672970203300,4.7067231,16850.0,16849.0,0.02240178]
[1672970203602,4.02794554,16850.0,16849.0,0.02240178]
[1672970204352,4.70045996,16850.0,16849.0,0.02240178]
[1672970205372,4.02794554,16850.0,16849.0,0.02231442]
[1672970206187,4.48114125,16850.0,16849.0,0.02231442]
[1672970206388,3.88305493,16850.0,16849.0,0.02231442]
[1672970206647,4.48135418,16850.0,16849.0,0.02231442]
[1672970206916,4.48135406,16850.0,16849.0,0.02231442]
[1672970207161,4.02815835,16850.0,16849.0,0.02231442]
[1672970209469,3.42985922,16850.0,16849.0,0.02231442]
[1672970216328,3.93322914,16850.0,16849.0,0.02231442]
[1672970219565,3.42985922,16850.0,16849.0,0.02231442]
[1672970219811,4.36340653,16850.0,16849.0,0.02231442]
[1672970220322,4.36340654,16850.0,16849.0,0.02231442]
[1672970220585,3.86024804,16850.0,16849.0,0.02231442]
[1672970220843,4.36122372,16850.0,16849.0,0.02231442]
[1672970226095,4.39686306,16850.0,16849.0,0.02231442]
[1672970226618,5.27089206,16850.0,16849.0,0.02231442]
[1672970226873,4.76991638,16850.0,16849.0,0.02231442]
[1672970228408,4.76991638,16850.0,16849.0,0.02222854]
[1672970231448,4.39762726,16850.0,16849.0,0.02222854]
[1672970231727,4.77008017,16850.0,16849.0,0.02222854]
[1672970232217,4.77007621,16850.0,16849.0,0.02222854]
[1672970232486,4.63407621,16850.0,16849.0,0.02222854]
[1672970232757,3.89588738,16850.0,16849.0,0.02222854]
[1672970233272,4.7699322,16850.0,16849.0,0.02222854]
[1672970234043,3.89588738,16850.0,16849.0,0.02222854]
[1672970234800,4.39795286,16850.0,16849.0,5.4e-07]
[1672970235060,0.4,16849.0,16848.0,0.0236958]
[1672970235325,4.95630481,16849.0,16848.0,0.0236958]
[1672970235580,4.99194415,16849.0,16848.0,0.0236958]
[1672970236346,5.12794415,16849.0,16848.0,0.0236958]
[1672970239135,0.00433012,16847.0,16842.0,0.0294127]
[1672970239468,0.59805835,16843.0,16842.0,0.0294127]
[1672970239685,0.59805835,16843.0,16839.0,1.75704518]
[1672970239686,0.4,16842.0,16839.0,1.75704518]
[1672970239954,3.16225289,16841.0,16839.0,1.14114026]
[1672970240213,1.95687889,16841.0,16840.0,0.70485704]
[1672970240479,1.95687889,16841.0,16840.0,0.70471983]
[1672970240480,1.63057629,16841.0,16840.0,0.70471983]
[1672970241002,1.487576,16841.0,16840.0,0.70471983]
[1672970241273,1.7594719,16841.0,16839.0,0.4644]
[1672970241532,0.74267473,16840.0,16839.0,0.4644]
[1672970241814,1.63032273,16840.0,16839.0,0.4644]
[1672970242071,1.63032273,16840.0,16838.0,0.65347029]
[1672970242339,0.6197002,16839.0,16838.0,0.65347029]
[1672970242604,1.63036108,16839.0,16838.0,0.65347029]
[1672970243107,1.36477528,16839.0,16838.0,0.65347029]
[1672970243619,1.63860523,16839.0,16838.0,0.65347029]
[1672970243893,1.38077528,16839.0,16837.0,0.61671962]
[1672970244155,1.38077528,16839.0,16838.0,0.61173671]
[1672970244749,1.36477528,16839.0,16838.0,0.61173671]
[1672970245174,1.187718,16839.0,16838.0,0.61173671]
[1672970245461,1.66371354,16839.0,16838.0,0.61173671]
[1672970245978,2.25757254,16839.0,16838.0,0.61173671]
[1672970246528,2.51615834,16839.0,16838.0,0.61173671]
[1672970247323,2.51615834,16839.0,16837.0,0.0008147]
[1672970247566,2.51615834,16839.0,16837.0,0.5566629]
[1672970248083,3.1408633,16839.0,16837.0,0.5566629]
[1672970248643,3.1318633,16839.0,16837.0,0.5566629]
[1672970248884,3.1478633,16839.0,16837.0,0.5566629]
[1672970249146,2.8662775,16839.0,16837.0,0.5566629]
[1672970249412,2.8982775,16839.0,16837.0,0.5566629]
[1672970249896,2.43828196,16839.0,16838.0,0.51235103]
[1672970251283,2.40628196,16839.0,16838.0,0.51235103]
[1672970251545,2.51228196,16839.0,16838.0,0.51235103]
[1672970253378,2.40628196,16839.0,16838.0,0.51235103]
[1672970253642,2.70017446,16839.0,16838.0,0.51235103]
[1672970256575,2.70017446,16839.0,16837.0,0.0008147]
[1672970256835,1.187788,16838.0,16837.0,0.0008147]
[1672970257093,1.587788,16838.0,16837.0,0.0008147]
[1672970257352,1.187788,16838.0,16837.0,0.64015908]
[1672970257632,1.45781245,16838.0,16837.0,0.64015908]
[1672970259766,1.47281245,16838.0,16837.0,0.64015908]
[1672970260017,1.202788,16838.0,16837.0,0.64015908]
[1672970260742,1.202788,16838.0,16837.0,0.64003953]
[1672970262055,0.608894,16838.0,16837.0,0.70094453]
[1672970263594,1.202788,16838.0,16837.0,0.70094453]
[1672970265436,0.608894,16838.0,16837.0,0.64003953]
[1672970265741,0.608894,16838.0,16837.0,0.70095553]
[1672970266005,0.608894,16838.0,16837.0,0.70114384]
[1672970266269,0.608894,16838.0,16837.0,0.70095553]
[1672970267606,0.8510305,16838.0,16837.0,0.70095553]
[1672970267853,1.4449245,16838.0,16837.0,0.70095553]
[1672970268125,1.4449245,16838.0,16837.0,0.64003953]
[1672970268430,1.4449245,16838.0,16837.0,0.70095553]
[1672970268681,0.608894,16838.0,16837.0,0.64003953]
[1672970268945,0.015,16838.0,16837.0,0.70095553]
[1672970269492,0.015,16838.0,16837.0,0.64003953]
[1672970269805,0.015,16838.0,16837.0,0.70095553]
[1672970270331,0.015,16838.0,16837.0,0.64003953]
[1672970270589,0.015,16838.0,16837.0,0.70095553]
[1672970272856,0.79958533,16838.0,16837.0,0.64003953]
[1672970273118,1.57053661,16838.0,16837.0,0.64003953]
[1672970275226,2.01317953,16838.0,16837.0,0.64003953]
[1672970275485,1.64559419,16838.0,16837.0,0.64003953]
[1672970276365,1.99970859,16838.0,16837.0,0.64003953]
[1672970277008,1.99946538,16838.0,16837.0,0.64003953]
[1672970277775,1.64535098,16838.0,16837.0,0.64003953]
[1672970278828,1.82827331,16838.0,16837.0,0.00069515]
[1672970280184,0.81266089,16838.0,16837.0,0.76116007]
[1672970280449,0.19244841,16838.0,16837.0,0.7673948]
[1672970280714,0.63632639,16838.0,16837.0,0.7673948]
[1672970280973,1.40654527,16838.0,16837.0,0.7673948]
[1672970281242,1.40654527,16838.0,16837.0,0.7064788]
[1672970281539,1.40654527,16838.0,16837.0,0.7673948]
[1672970282060,1.40654527,16838.0,16837.0,0.7064788]
[1672970283111,1.05145698,16838.0,16837.0,0.7064788]
[1672970283412,1.40657831,16838.0,16837.0,0.7064788]
[1672970284914,1.05145698,16838.0,16837.0,0.7064788]
[1672970285202,0.45756298,16838.0,16837.0,0.7064788]
[1672970285465,0.45756298,16838.0,16837.0,0.7673948]
[1672970285974,0.45880716,16838.0,16837.0,1.86573625]
[1672970286234,0.63634633,16838.0,16837.0,0.7673948]
[1672970286490,0.63634633,16838.0,16837.0,1.1673948]
[1672970286773,0.81390686,16838.0,16837.0,1.1673948]
[1672970287287,0.45879026,16838.0,16837.0,1.1673948]
[1672970287551,0.45879026,16838.0,16837.0,1.67406466]
[1672970287832,0.45879026,16838.0,16837.0,1.1673948]
[1672970288143,0.45879026,16838.0,16837.0,1.67417304]
[1672970288407,0.45879026,16838.0,16837.0,1.1673948]
[1672970289817,0.45879026,16838.0,16837.0,1.7613248]
[1672970290341,0.19244878,16838.0,16837.0,2.26725392]
[1672970291126,0.19244878,16838.0,16837.0,2.26735]
[1672970291382,0.19244878,16838.0,16837.0,2.26235]
[1672970291908,0.45879026,16838.0,16837.0,1.7563248]
[1672970292410,0.45879026,16838.0,16837.0,1.1623948]
[1672970292665,1.2416636,16838.0,16837.0,0.060916]
[1672970292927,1.95754301,16838.0,16837.0,0.060916]
[1672970293183,2.55143701,16838.0,16836.0,0.54957112]
[1672970293466,0.6210922,16837.0,16836.0,0.54957112]
[1672970293726,1.2150222,16837.0,16836.0,0.54957112]
[1672970293986,1.2150222,16837.0,16836.0,0.61049112]
[1672970294516,1.74914332,16837.0,16836.0,0.61049112]
[1672970294782,2.02531212,16837.0,16836.0,0.62757112]
[1672970295053,1.75914332,16837.0,16836.0,0.68849412]
[1672970295318,1.58263786,16837.0,16836.0,0.62757112]
[1672970295867,1.2250091,16837.0,16836.0,0.68849412]
[1672970296442,2.06768383,16837.0,16836.0,0.138923]
[1672970296710,2.57821262,16837.0,16836.0,0.078]
[1672970297006,3.671773,16837.0,16836.0,0.078]
[1672970297834,3.671773,16837.0,16836.0,0.61831597]
[1672970297835,1.88185734,16837.0,16836.0,0.61831597]
[1672970298093,2.63422465,16837.0,16836.0,0.54031597]
[1672970298366,2.35055251,16837.0,16836.0,0.54731597]
[1672970298639,2.70522595,16837.0,16836.0,0.54731597]
[1672970299712,3.03511662,16837.0,16836.0,0.007]
[1672970299972,2.68046771,16837.0,16836.0,0.007]
[1672970300734,2.35055251,16837.0,16836.0,0.007]
[1672970301778,2.70514056,16837.0,16836.0,0.007]
[1672970302050,2.35055251,16837.0,16836.0,0.007]
[1672970302573,2.70513079,16837.0,16836.0,0.007]
[1672970308327,2.97095158,16837.0,16836.0,0.007]
[1672970308604,3.06161855,16837.0,16836.0,0.007]
[1672970311225,2.70513079,16837.0,16836.0,0.007]
[1672970311502,1.87927146,16837.0,16836.0,0.65603759]
[1672970311770,1.87927146,16837.0,16836.0,0.71696059]
[1672970312070,0.51406922,16837.0,16836.0,0.65603759]
[1672970312336,0.51406922,16837.0,16836.0,0.71818846]
[1672970312337,0.24823604,16837.0,16836.0,0.71818846]
[1672970313431,0.24823604,16837.0,16836.0,0.71696059]
[1672970313974,0.24823604,16837.0,16836.0,1.11696059]
[1672970314286,0.24823604,16837.0,16836.0,1.73286551]
[1672970314539,0.24823604,16837.0,16836.0,0.71696059]
[1672970315109,0.24823604,16837.0,16836.0,1.11696059]
[1672970315373,0.071,16837.0,16836.0,1.73292689]
[1672970315661,0.071,16837.0,16836.0,0.71696059]
[1672970315925,0.071,16837.0,16836.0,1.63286551]
[1672970316235,0.071,16837.0,16836.0,1.63280181]
[1672970316494,0.071,16837.0,16836.0,1.63286319]
[1672970317287,0.071,16837.0,16836.0,1.01689689]
[1672970317563,0.071,16837.0,16836.0,0.71689689]
[1672970318100,0.24823604,16837.0,16836.0,0.71689689]
[1672970319402,1.10799922,16837.0,16836.0,0.71689689]
[1672970320811,0.51406922,16837.0,16836.0,0.71689689]
[1672970321315,0.071,16837.0,16836.0,1.19608974]
[1672970321608,0.071,16837.0,16836.0,1.81199466]
[1672970322056,0.071,16837.0,16836.0,1.81193328]
[1672970322315,0.071,16837.0,16836.0,0.60206336]
[1672970322807,0.24823604,16837.0,16836.0,0.60206336]
[1672970323059,0.07092202,16837.0,16836.0,0.60206336]
[1672970323296,1.99883039,16838.0,16836.0,0.59518844]
[1672970323540,0.01,16837.0,16836.0,0.61226544]
[1672970323784,1.99883039,16838.0,16836.0,0.59518644]
[1672970324060,0.01,16837.0,16836.0,0.61226544]
[1672970324307,0.01,16837.0,16836.0,0.67318644]
[1672970324778,0.01,16837.0,16836.0,0.97318644]
[1672970325264,0.01,16837.0,16836.0,1.58909136]
[1672970326762,0.01,16837.0,16836.0,0.67312506]
[1672970327011,0.18723604,16837.0,16836.0,0.67312506]
[1672970328762,0.18723604,16837.0,16836.0,1.28902998]
[1672970329002,0.01,16837.0,16836.0,1.22810898]
[1672970329439,0.18723604,16837.0,16836.0,0.67312706]
[1672970329694,0.18723604,16837.0,16836.0,1.07312706]
[1672970329984,0.18723604,16837.0,16836.0,1.68903198]
[1672970330492,0.18723604,16837.0,16836.0,1.07318844]
[1672970330746,0.18723604,16837.0,16836.0,1.68909336]
[1672970330996,0.18723604,16837.0,16836.0,1.07318844]